[Event "Romanian-ch Youth Open U16 2024"]
[Site "Eforie Nord"]
[Date "2024.04.19"]
[Round "9.2"]
[White "Cnejev, Vladimir-Alexandru"]
[Black "Cazan, Mircea-Andrei"]
[Result "1-0"]
[ECO "B06"]
[WhiteElo "2353"]
[BlackElo "1831"]
[Annotator "TA"]
[PlyCount "109"]
[EventDate "2024.04.10"]
[EventType "swiss"]
[EventCountry "ROU"]
[SourceTitle "playchess.com"]
[Source "ChessBase"]
[SourceQuality "1"]
[TimeControl "5400+30"]

{[%evp 9,109,34,31,23,33,24,45,37,36,42,40,22,35,27,24,20,30,22,18,16,25,14,20,5,4,0,17,3,0,0,0,0,0,0,0,0,0,0,20,4,24,20,26,27,31,13,6,10,5,3,20,14,135,52,41,43,50,46,74,39,44,37,29,37,45,47,51,37,115,25,30,31,15,14,156,135,141,126,245,246,253,174,321,318,395,393,532,372,306,286,408,388,545,563,551,516,516,499,995,968,29991,1083]} 1. e4 {[%emt 0:03:36]} c5 {[%emt 0:00:24]} 2. Nf3 {[%emt 0:00:09]} g6 {[%emt 0:00:21]} 3. c3 {[%emt 0:00:17]} d5 {[%emt 0:00:33]} 4. exd5 {[%emt 0:00:12]} Qxd5 {[%emt 0:00:07]} 5. d4 {[%emt 0:00:22]} Bg7 {[%emt 0:00:10]} 6. Nbd2 {[%emt 0:00:45]} cxd4 {[%emt 0:02:44]} 7. Bc4 {[%emt 0:00:26]} Qd8 {[%emt 0:04:30]} 8. Nxd4 {[%emt 0:01:21] White is slightly better.} Nf6 {[%emt 0:01:16] Prevents Ne4.} 9. O-O {[%emt 0:01:05]} O-O {[%emt 0:00:21]} 10. N2f3 {[%emt 0:00:46]} Bg4 {[%emt 0:12:43]} 11. Qb3 {[%emt 0:17:59]} Bxf3 {[%emt 0:02:17]} 12. Nxf3 {[%emt 0:00:12]} Qc7 {[%emt 0:01:33] Prevents Ne5.} 13. Re1 {[%emt 0:01:55]} Nc6 {[%emt 0:02:24] [#] Inhibits Ne5. ...Na5 would now be deadly.} 14. Qa4 {[%emt 0:04:03][%cal Oc1f4]} Qa5 {[%emt 0:05:39]} 15. Qc2 {[%emt 0:11:32]} Rac8 {[%emt 0:01:27]} 16. a4 {[%emt 0:08:52]} e6 {[%emt 0:11:14]} 17. Qe2 {[%emt 0:05:07]} Rfd8 {[%emt 0:05:49]} 18. h3 {[%emt 0:08:37]} Nd5 {[%emt 0:07:55]} 19. Bg5 {[%emt 0:01:47][%cal Bc1g5,Bg5d2,Bd2e3][%mdl 32]} Rd7 {[%emt 0:01:00]} 20. Bd3 {[%emt 0:10:27]} h6 {[%emt 0:04:14]} 21. Bd2 {[%emt 0:01:02][%cal Od3g6] Black must now prevent Bxg6! This pair of bishops is nice.} Rcd8 {[%emt 0:04:04][%cal Rd5c3] Strongly threatening ...Nxc3!} 22. Bc2 {[%emt 0:02:03]} Qc7 {[%emt 0:05:04]} 23. g3 {[%emt 0:01:16]} e5 {[%emt 0:02:17]} 24. Rad1 {[%emt 0:04:02]} f5 {[%emt 0:02:33]} 25. Nh4 {[%emt 0:04:24]} Nde7 {[%emt 0:04:59]} 26. Be3 {[%emt 0:03:32] Inhibits Nd4.} e4 {[%emt 0:01:14]} 27. Qc4+ {[%emt 0:00:44]} Kh7 {[%emt 0:00:15]} 28. Rxd7 {[%emt 0:02:27]} Qxd7 {[%emt 0:01:36]} 29. Rd1 {[%emt 0:00:50]} (29. Qb3 {simplifies} Qd5 30. Rd1 Qxb3 31. Bxb3 Rxd1+ 32. Bxd1 g5 33. Ng2) 29... Qe8 {[%emt 0:00:21]} 30. Qe6 {[%emt 0:02:28]} Ne5 {[%emt 0:02:16]} (30... Rxd1+ $11 {keeps the balance.} 31. Bxd1 Nd8) 31. g4 {[%emt 0:01:47] White has more active pieces.} (31. Rxd8 $16 Qxd8 32. Bxa7) 31... Rxd1+ $14 {[%emt 0:03:10]} 32. Bxd1 {[%emt 0:00:01]} fxg4 {[%emt 0:00:20]} 33. hxg4 {[%emt 0:00:22][%cal Od1c2]} Qd8 {[%emt 0:00:25]} 34. Bc2 {[%emt 0:01:13]} (34. Bb3 $5) 34... Nd5 {[%emt 0:04:34]} 35. Ng2 {[%emt 0:00:50]} (35. Bxa7 $2 Qxh4 (35... Nf4 $2 36. Nxg6 Nf3+ 37. Kh1 $19) 36. Bxe4 Nf4 $19 (36... Qxg4+ $2 37. Qxg4 Nxg4 38. Bxd5 $18)) 35... Nf3+ {[%emt 0:00:52]} 36. Kf1 $1 {[%emt 0:00:22]} Nxe3+ {[%emt 0:03:14]} 37. Nxe3 {[%emt 0:00:09]} Ng5 {[%emt 0:02:15]} 38. Qc4 {[%emt 0:01:50]} Qd2 {[%emt 0:00:43]} ({Black should play} 38... Nf3 $14 39. Qd5 (39. Qxe4 $2 Nd2+ 40. Kg2 Nxe4 $19) 39... Nh2+ 40. Ke2 Qxd5 41. Nxd5 Nxg4) 39. Bb3 {[%emt 0:01:08]} (39. Bxe4 $6 Qxb2 40. Bc2 Qxc3 $11 (40... Bxc3 $2 41. Bb3 $18)) (39. Kg2 $16) 39... Qd8 $11 {[%emt 0:00:48]} 40. Ke2 {[%emt 0:00:00]} Qf8 {[%emt 0:00:07]} 41. Qd5 {[%emt 0:00:25]} Qf3+ {[%emt 0:01:28]} (41... b6 $11) 42. Ke1 $16 {[%emt 0:00:10]} Qf8 {[%emt 0:00:28] Wards off Qg8+} (42... Qh1+ $2 43. Kd2 Nf3+ 44. Kc2 $18) 43. Qxb7 {[%emt 0:00:50]} h5 {[%emt 0:01:12]} (43... Nf3+ $16 44. Ke2 Ng5) 44. gxh5 $18 {[%emt 0:00:18]} (44. Qxa7 Nf3+ 45. Kd1 h4 $17) 44... gxh5 {[%emt 0:00:11]} 45. Qd5 {[%emt 0:00:19]} Bh6 {[%emt 0:01:09]} (45... Kg6 {was necessary.} 46. a5 Be5) 46. Nf5 {[%emt 0:00:45]} Nf3+ {[%emt 0:00:29]} 47. Ke2 {[%emt 0:00:24]} Ng1+ {[%emt 0:00:24]} 48. Kf1 {[%emt 0:00:26]} Nf3 {[%emt 0:00:40]} 49. Bc2 {[%emt 0:00:48][%cal Of5h6] [#] Hoping for Nxh6!} (49. Qxe4 $2 {perishes.} Nd2+ 50. Ke2 Nxe4 $19) 49... Bg5 {[%emt 0:00:38]} (49... Qf6 $142 50. Bxe4 Nd2+ 51. Ke2 Nxe4) 50. Ke2 {[%emt 0:00:32]} Ng1+ {[%emt 0:00:24]} (50... Nd2 {might work better.} 51. Bxe4 Nxe4 52. Qxe4 Qf7) 51. Kd1 {[%emt 0:00:30]} Nh3 {[%emt 0:00:24]} 52. Ke1 {[%emt 0:00:19]} ({Weaker is} 52. Bxe4 Nxf2+ 53. Kc2 Nxe4 $18) 52... Kh8 {[%emt 0:00:42]} 53. Qxe4 {[%emt 0:00:24]} Qd8 {[%emt 0:00:12]} (53... Nf4 $142 54. Kf1 Nh3) 54. Nd4 {[%emt 0:00:41]} Qc7 {[%emt 0:00:18] Prevents Qh7+.} 55. Qe8+ {[%emt 0:00:12] Weighted Error Value: White=0.15 (very precise) /Black=0.44.  Mistake:       	White=2     	Black=8      Inaccurate:     	White=3     	Black=3      OK:         	White=21    	Black=20     Best:        	White=4     	Black=2      Strong:       	White=1     	---} 1-0